[Event "*** Titled Tuesday Blitz"]
[Site "Chess.com"]
[Date "2018.11.06"]
[Round "1"]
[White "AlexTriapishko"]
[Black "TheRigos"]
[Result "1-0"]
[WhiteElo "2761"]
[BlackElo "2398"]
[TimeControl "180+2"]
[EndTime "13:10:47 PST"]
[Termination "AlexTriapishko won by resignation"]

1. e4 {[%clk 0:02:54.8]} 1... c5 {[%clk 0:02:59.9]} 2. Nf3 {[%clk 0:02:53.5]}
2... d6 {[%clk 0:03:00.5]} 3. d4 {[%clk 0:02:55]} 3... cxd4 {[%clk 0:03:02.4]}
4. Nxd4 {[%clk 0:02:56.6]} 4... Nf6 {[%clk 0:03:03.4]} 5. Nc3 {[%clk 0:02:58.2]}
5... a6 {[%clk 0:03:04.5]} 6. g3 {[%clk 0:02:59.5]} 6... g6 {[%clk 0:02:57.7]}
7. Bg2 {[%clk 0:03:00.5]} 7... Bg7 {[%clk 0:02:59]} 8. O-O {[%clk 0:03:02.4]}
8... O-O {[%clk 0:03:00.2]} 9. a4 {[%clk 0:03:00.8]} 9... Bg4 {[%clk 0:02:31.5]}
10. Qd3 {[%clk 0:02:53.1]} 10... Nbd7 {[%clk 0:02:26.2]} 11. h3 {[%clk
0:02:48.7]} 11... Nc5 {[%clk 0:02:27.1]} 12. Qe3 {[%clk 0:02:43.6]} 12... Bd7
{[%clk 0:02:15.3]} 13. a5 {[%clk 0:02:32.9]} 13... Qc8 {[%clk 0:01:53.3]} 14. g4
{[%clk 0:02:29.1]} 14... e5 {[%clk 0:01:50.2]} 15. Nde2 {[%clk 0:02:24.1]} 15...
Bc6 {[%clk 0:01:45.9]} 16. Rd1 {[%clk 0:02:18.5]} 16... Rd8 {[%clk 0:01:43.7]}
17. Ng3 {[%clk 0:02:17.5]} 17... Ne6 {[%clk 0:01:31.9]} 18. g5 {[%clk
0:02:17.9]} 18... Ne8 {[%clk 0:01:21.1]} 19. Nge2 {[%clk 0:02:16.3]} 19... f6
{[%clk 0:01:19.5]} 20. h4 {[%clk 0:02:15.9]} 20... f5 {[%clk 0:01:17.5]} 21.
exf5 {[%clk 0:01:48.2]} 21... gxf5 {[%clk 0:01:11.8]} 22. Nd5 {[%clk 0:01:48.1]}
22... Bxd5 {[%clk 0:01:10.3]} 23. Bxd5 {[%clk 0:01:48.8]} 23... Nc7 {[%clk
0:01:08.9]} 24. Qf3 {[%clk 0:01:37.9]} 24... Nxd5 {[%clk 0:00:56.2]} 25. Qxd5
{[%clk 0:01:39.8]} 25... Kh8 {[%clk 0:00:46.7]} 26. c3 {[%clk 0:01:34.5]} 26...
Qd7 {[%clk 0:00:35.9]} 27. Ng3 {[%clk 0:01:32.6]} 27... Qf7 {[%clk 0:00:11.8]}
28. f4 {[%clk 0:01:26.4]} 28... Rac8 {[%clk 0:00:11.8]} 29. Be3 {[%clk
0:01:13.9]} 29... Rd7 {[%clk 0:00:07.3]} 30. Qf3 {[%clk 0:01:01.8]} 30... e4
{[%clk 0:00:07.9]} 31. Qf2 {[%clk 0:00:45]} 31... d5 {[%clk 0:00:09.3]} 32. h5
{[%clk 0:00:46.6]} 32... Bf8 {[%clk 0:00:07.8]} 33. h6 {[%clk 0:00:43.1]} 33...
Bc5 {[%clk 0:00:07.7]} 34. Ne2 {[%clk 0:00:41.2]} 34... Kg8 {[%clk 0:00:07.3]}
35. b4 {[%clk 0:00:34.8]} 35... Bxe3 {[%clk 0:00:08.2]} 36. Qxe3 {[%clk
0:00:36.7]} 36... Qh5 {[%clk 0:00:09.7]} 37. Rd2 {[%clk 0:00:32]} 37... Qg4+
{[%clk 0:00:10.6]} 38. Kf2 {[%clk 0:00:29.2]} 38... Qh4+ {[%clk 0:00:10.8]} 39.
Qg3 {[%clk 0:00:26.2]} 39... Qh5 {[%clk 0:00:09.9]} 40. Rg1 {[%clk 0:00:22.9]}
40... Qg6 {[%clk 0:00:10.6]} 41. Qe3 {[%clk 0:00:22.7]} 41... Rcd8 {[%clk
0:00:11.5]} 42. Nd4 {[%clk 0:00:23.5]} 42... Nf8 {[%clk 0:00:11.1]} 43. Qh3
{[%clk 0:00:23.4]} 43... Rf7 {[%clk 0:00:11.4]} 44. Rh1 {[%clk 0:00:23.3]} 44...
Ne6 {[%clk 0:00:11.4]} 45. Ke3 {[%clk 0:00:24.3]} 45... Rc8 {[%clk 0:00:10.3]}
46. Ne2 {[%clk 0:00:21.4]} 46... Rd7 {[%clk 0:00:08.6]} 47. Qh5 {[%clk
0:00:21.1]} 47... Nf8 {[%clk 0:00:09.1]} 48. Qxg6+ {[%clk 0:00:21.6]} 48... Nxg6
{[%clk 0:00:10.6]} 49. Rhd1 {[%clk 0:00:21.9]} 49... Rcd8 {[%clk 0:00:12]} 50.
c4 {[%clk 0:00:21.1]} 50... Ne7 {[%clk 0:00:11.7]} 51. Kf2 {[%clk 0:00:15.5]}
51... Kf7 {[%clk 0:00:11.8]} 52. Nc3 {[%clk 0:00:12.5]} 52... d4 {[%clk
0:00:11.2]} 53. Nd5 {[%clk 0:00:08.6]} 53... e3+ {[%clk 0:00:08.9]} 54. Nxe3
{[%clk 0:00:09.5]} 54... dxe3+ {[%clk 0:00:10.8]} 55. Kxe3 {[%clk 0:00:11.4]}
55... Rxd2 {[%clk 0:00:11.9]} 56. Rxd2 {[%clk 0:00:13.3]} 56... Rxd2 {[%clk
0:00:13.5]} 57. Kxd2 {[%clk 0:00:15.2]} 57... Nc6 {[%clk 0:00:13.8]} 58. Kc3
{[%clk 0:00:15.6]} 58... Ne7 {[%clk 0:00:10.9]} 59. b5 {[%clk 0:00:09.4]} 59...
Ke6 {[%clk 0:00:10.8]} 60. Kd4 {[%clk 0:00:09.9]} 60... Ng6 {[%clk 0:00:11.7]}
61. Kc5 {[%clk 0:00:08.5]} 61... axb5 {[%clk 0:00:13]} 62. cxb5 {[%clk
0:00:09.6]} 62... Nxf4 {[%clk 0:00:11]} 63. a6 {[%clk 0:00:10.8]} 63... bxa6
{[%clk 0:00:07.1]} 64. bxa6 {[%clk 0:00:12.7]} 64... Nd5 {[%clk 0:00:05.4]} 65.
g6 {[%clk 0:00:13.8]} 65... f4 {[%clk 0:00:04.7]} 66. g7 {[%clk 0:00:10.1]}
66... Ne7 {[%clk 0:00:05]} 67. a7 {[%clk 0:00:11]} 67... f3 {[%clk 0:00:04.9]}
68. a8=Q {[%clk 0:00:12.1]} 1-0

[Event "*** Titled Tuesday Blitz"]
[Site "Chess.com"]
[Date "2018.11.06"]
[Round "1"]
[White "TastyFrenchFries"]
[Black "bascheyaro"]
[Result "1-0"]
[WhiteElo "2379"]
[BlackElo "2716"]
[TimeControl "180+2"]
[EndTime "13:11:05 PST"]
[Termination "TastyFrenchFries won by checkmate"]

1. e3 {[%clk 0:02:47.3]} 1... d5 {[%clk 0:03:00.3]} 2. Nf3 {[%clk 0:02:45.6]}
2... Nf6 {[%clk 0:03:01.6]} 3. d4 {[%clk 0:02:46.7]} 3... Bf5 {[%clk 0:03:02.8]}
4. c4 {[%clk 0:02:47.7]} 4... e6 {[%clk 0:03:03.6]} 5. Qb3 {[%clk 0:02:48.7]}
5... Qc8 {[%clk 0:03:04]} 6. Nc3 {[%clk 0:02:48.8]} 6... c6 {[%clk 0:03:05.2]}
7. h3 {[%clk 0:02:48.4]} 7... h6 {[%clk 0:03:05.3]} 8. g4 {[%clk 0:02:49.7]}
8... Bh7 {[%clk 0:03:03.1]} 9. Bg2 {[%clk 0:02:51]} 9... Nbd7 {[%clk 0:03:03]}
10. O-O {[%clk 0:02:51.7]} 10... Bd6 {[%clk 0:03:04.2]} 11. cxd5 {[%clk
0:02:37.6]} 11... exd5 {[%clk 0:03:04.8]} 12. Bd2 {[%clk 0:02:36.8]} 12... O-O
{[%clk 0:03:04.9]} 13. Rfe1 {[%clk 0:02:37.4]} 13... Re8 {[%clk 0:03:03.6]} 14.
Nh4 {[%clk 0:02:36.8]} 14... Rb8 {[%clk 0:02:59.5]} 15. f4 {[%clk 0:02:37.4]}
15... Qd8 {[%clk 0:03:00.2]} 16. Nf3 {[%clk 0:02:37.9]} 16... Ne4 {[%clk
0:02:58]} 17. Nxe4 {[%clk 0:02:38.4]} 17... Bxe4 {[%clk 0:02:59.4]} 18. Ne5
{[%clk 0:02:37.9]} 18... Bxg2 {[%clk 0:02:59.3]} 19. Kxg2 {[%clk 0:02:38.9]}
19... Nf6 {[%clk 0:03:00.5]} 20. Bb4 {[%clk 0:02:38]} 20... Bxe5 {[%clk
0:03:00.8]} 21. fxe5 {[%clk 0:02:35.2]} 21... Ne4 {[%clk 0:03:01.8]} 22. Rf1
{[%clk 0:02:33.3]} 22... b6 {[%clk 0:02:43.6]} 23. Rf3 {[%clk 0:02:19.2]} 23...
c5 {[%clk 0:02:43.5]} 24. Bc3 {[%clk 0:02:20.6]} 24... h5 {[%clk 0:02:25]} 25.
gxh5 {[%clk 0:01:58]} 25... Qg5+ {[%clk 0:02:23.6]} 26. Kh2 {[%clk 0:01:59.1]}
26... Qxh5 {[%clk 0:02:13.8]} 27. Qd1 {[%clk 0:01:58.5]} 27... Re6 {[%clk
0:02:08.8]} 28. Rf4 {[%clk 0:01:55.7]} 28... Qxd1 {[%clk 0:01:36.3]} 29. Rxd1
{[%clk 0:01:57.6]} 29... c4 {[%clk 0:01:35.3]} 30. Rg1 {[%clk 0:01:47.2]} 30...
b5 {[%clk 0:01:27.2]} 31. a3 {[%clk 0:01:38.3]} 31... Rb7 {[%clk 0:01:10.3]} 32.
Rxe4 {[%clk 0:01:21.6]} 32... dxe4 {[%clk 0:01:11.3]} 33. Rg4 {[%clk 0:01:20.8]}
33... Rd7 {[%clk 0:00:53.9]} 34. Kg3 {[%clk 0:01:07.6]} 34... Kf8 {[%clk
0:00:49.6]} 35. Kf4 {[%clk 0:01:04.2]} 35... Rh6 {[%clk 0:00:46.7]} 36. h4
{[%clk 0:01:00.3]} 36... f6 {[%clk 0:00:47.8]} 37. e6 {[%clk 0:00:59.1]} 37...
Rb7 {[%clk 0:00:25.3]} 38. Kxe4 {[%clk 0:00:54.1]} 38... Rh5 {[%clk 0:00:25.3]}
39. Rf4 {[%clk 0:00:47.3]} 39... a5 {[%clk 0:00:21.1]} 40. Bxa5 {[%clk
0:00:47.1]} 40... Ke7 {[%clk 0:00:22.3]} 41. d5 {[%clk 0:00:47.1]} 41... Re5+
{[%clk 0:00:22.9]} 42. Kd4 {[%clk 0:00:47.7]} 42... Rh5 {[%clk 0:00:23.2]} 43.
Bb4+ {[%clk 0:00:48.7]} 43... Ke8 {[%clk 0:00:24.5]} 44. e4 {[%clk 0:00:49.6]}
44... Rb6 {[%clk 0:00:24.1]} 45. Kc5 {[%clk 0:00:50.8]} 45... Rxe6 {[%clk
0:00:25]} 46. Kxb5 {[%clk 0:00:51.5]} 46... Ree5 {[%clk 0:00:25.4]} 47. Kxc4
{[%clk 0:00:51.4]} 47... Kd7 {[%clk 0:00:26.1]} 48. a4 {[%clk 0:00:51.5]} 48...
g5 {[%clk 0:00:27.1]} 49. hxg5 {[%clk 0:00:50.5]} 49... fxg5 {[%clk 0:00:28.5]}
50. Rf7+ {[%clk 0:00:52]} 50... Ke8 {[%clk 0:00:30]} 51. Rf8+ {[%clk 0:00:52.4]}
51... Kd7 {[%clk 0:00:31.5]} 52. Kd4 {[%clk 0:00:53.8]} 52... Re8 {[%clk
0:00:32.8]} 53. Rf7+ {[%clk 0:00:54.8]} 53... Kc8 {[%clk 0:00:33.8]} 54. d6
{[%clk 0:00:54.7]} 54... Rd8 {[%clk 0:00:33.6]} 55. e5 {[%clk 0:00:52.1]} 55...
Rh4+ {[%clk 0:00:34.4]} 56. Kc5 {[%clk 0:00:53.7]} 56... Re4 {[%clk 0:00:35.6]}
57. Bc3 {[%clk 0:00:54.5]} 57... g4 {[%clk 0:00:36.2]} 58. Rg7 {[%clk
0:00:51.9]} 58... Rxa4 {[%clk 0:00:37]} 59. e6 {[%clk 0:00:50]} 59... Re4 {[%clk
0:00:36.3]} 60. e7 {[%clk 0:00:50.7]} 60... Rh8 {[%clk 0:00:37.2]} 61. Kc6
{[%clk 0:00:30.8]} 61... Rc4+ {[%clk 0:00:38.1]} 62. Kd5 {[%clk 0:00:31.7]}
62... Ra4 {[%clk 0:00:39.4]} 63. Kc6 {[%clk 0:00:27]} 63... Rc4+ {[%clk
0:00:40.3]} 64. Kb5 {[%clk 0:00:28.5]} 64... Re4 {[%clk 0:00:41.2]} 65. e8=Q+
{[%clk 0:00:25]} 65... Rhxe8 {[%clk 0:00:38.4]} 66. d7+ {[%clk 0:00:26.4]} 66...
Kd8 {[%clk 0:00:39.9]} 67. dxe8=Q+ {[%clk 0:00:21.9]} 67... Kxe8 {[%clk
0:00:41.1]} 68. Kc5 {[%clk 0:00:22.7]} 68... Kf8 {[%clk 0:00:42.2]} 69. Rg5
{[%clk 0:00:23.3]} 69... Kf7 {[%clk 0:00:42.9]} 70. b4 {[%clk 0:00:22]} 70...
Re3 {[%clk 0:00:44.3]} 71. Bd4 {[%clk 0:00:23.2]} 71... Re4 {[%clk 0:00:45.1]}
72. b5 {[%clk 0:00:24.4]} 72... Ke6 {[%clk 0:00:45.2]} 73. b6 {[%clk 0:00:25.7]}
73... Kd7 {[%clk 0:00:45.3]} 74. Rg7+ {[%clk 0:00:25.5]} 74... Kc8 {[%clk
0:00:46.6]} 75. Kd5 {[%clk 0:00:23.8]} 75... Re2 {[%clk 0:00:41.3]} 76. b7+
{[%clk 0:00:24.9]} 76... Kb8 {[%clk 0:00:42.9]} 77. Be5+ {[%clk 0:00:25]} 77...
Rxe5+ {[%clk 0:00:44.4]} 78. Kxe5 {[%clk 0:00:26.9]} 78... g3 {[%clk 0:00:46.3]}
79. Rxg3 {[%clk 0:00:25.3]} 79... Kxb7 {[%clk 0:00:47.2]} 80. Rc3 {[%clk
0:00:26.8]} 80... Kb6 {[%clk 0:00:48.4]} 81. Kd6 {[%clk 0:00:28.7]} 81... Kb5
{[%clk 0:00:50.1]} 82. Kd5 {[%clk 0:00:29.9]} 82... Kb4 {[%clk 0:00:52]} 83. Kd4
{[%clk 0:00:31.5]} 83... Kb5 {[%clk 0:00:53.3]} 84. Rc4 {[%clk 0:00:33.1]} 84...
Kb6 {[%clk 0:00:55.1]} 85. Kd5 {[%clk 0:00:34.8]} 85... Kb5 {[%clk 0:00:56.9]}
86. Rd4 {[%clk 0:00:35.2]} 86... Kb6 {[%clk 0:00:58.3]} 87. Kd6 {[%clk
0:00:35.6]} 87... Kb5 {[%clk 0:00:59.9]} 88. Re4 {[%clk 0:00:37.3]} 88... Kb6
{[%clk 0:01:01.2]} 89. Re5 {[%clk 0:00:38.8]} 89... Ka6 {[%clk 0:01:02.3]} 90.
Kc6 {[%clk 0:00:38.8]} 90... Ka7 {[%clk 0:01:03.7]} 91. Kc7 {[%clk 0:00:40.4]}
91... Ka6 {[%clk 0:01:05.2]} 92. Rf5 {[%clk 0:00:41.7]} 92... Ka7 {[%clk
0:01:06.7]} 93. Ra5# {[%clk 0:00:43.4]} 1-0

[Event "*** Titled Tuesday Blitz"]
[Site "Chess.com"]
[Date "2018.11.06"]
[Round "1"]
[White "GasconJR"]
[Black "pKiLz5Rn9b"]
[Result "1-0"]
[WhiteElo "2403"]
[BlackElo "2721"]
[TimeControl "180+2"]
[EndTime "13:12:05 PST"]
[Termination "GasconJR won on time"]

1. e4 {[%clk 0:02:56.1]} 1... e6 {[%clk 0:03:01.1]} 2. d4 {[%clk 0:02:56.9]}
2... d5 {[%clk 0:03:02.1]} 3. Nc3 {[%clk 0:02:58.5]} 3... dxe4 {[%clk
0:03:02.7]} 4. Nxe4 {[%clk 0:02:59.5]} 4... Nd7 {[%clk 0:03:04.6]} 5. Nf3 {[%clk
0:02:59.7]} 5... Ngf6 {[%clk 0:03:03.7]} 6. Nxf6+ {[%clk 0:02:59.7]} 6... Nxf6
{[%clk 0:03:05.6]} 7. Bc4 {[%clk 0:02:59]} 7... c5 {[%clk 0:03:05.1]} 8. O-O
{[%clk 0:02:58.1]} 8... a6 {[%clk 0:02:57.5]} 9. a4 {[%clk 0:02:57.2]} 9... Qc7
{[%clk 0:02:54.1]} 10. Ne5 {[%clk 0:02:22]} 10... cxd4 {[%clk 0:02:53.8]} 11.
Bf4 {[%clk 0:02:21.1]} 11... Qc5 {[%clk 0:02:40.8]} 12. b4 {[%clk 0:02:06.5]}
12... Qxb4 {[%clk 0:02:38.6]} 13. Qxd4 {[%clk 0:02:06.5]} 13... Qc5 {[%clk
0:02:38.7]} 14. Qd3 {[%clk 0:02:01.3]} 14... Be7 {[%clk 0:02:33.4]} 15. Rad1
{[%clk 0:01:22.3]} 15... O-O {[%clk 0:02:33.1]} 16. Rfe1 {[%clk 0:01:21.7]}
16... Nd5 {[%clk 0:02:34]} 17. Bxd5 {[%clk 0:01:20.8]} 17... exd5 {[%clk
0:02:33.1]} 18. Be3 {[%clk 0:01:12]} 18... Qc7 {[%clk 0:02:32.2]} 19. Bd4 {[%clk
0:01:12.3]} 19... Be6 {[%clk 0:02:30.8]} 20. Qg3 {[%clk 0:01:09.1]} 20... Bf6
{[%clk 0:02:29.6]} 21. Ng4 {[%clk 0:01:06.3]} 21... Qxg3 {[%clk 0:02:20.2]} 22.
Nxf6+ {[%clk 0:01:06.4]} 22... gxf6 {[%clk 0:02:21.7]} 23. hxg3 {[%clk 0:01:07]}
23... Rfc8 {[%clk 0:02:21.9]} 24. c3 {[%clk 0:01:06.4]} 24... Kg7 {[%clk
0:02:22.9]} 25. a5 {[%clk 0:01:03.3]} 25... Rc7 {[%clk 0:02:20.6]} 26. Rb1
{[%clk 0:01:03.9]} 26... Rac8 {[%clk 0:02:20.5]} 27. Rb6 {[%clk 0:01:05.3]}
27... Rd7 {[%clk 0:02:11.4]} 28. f3 {[%clk 0:01:06.1]} 28... Rc6 {[%clk
0:02:10]} 29. g4 {[%clk 0:01:06.4]} 29... Rxb6 {[%clk 0:02:09.5]} 30. Bxb6
{[%clk 0:01:08.3]} 30... f5 {[%clk 0:02:06.8]} 31. Bd4+ {[%clk 0:01:07.6]} 31...
Kg6 {[%clk 0:02:07.9]} 32. gxf5+ {[%clk 0:01:07.6]} 32... Kxf5 {[%clk 0:02:09]}
33. Re5+ {[%clk 0:01:06.1]} 33... Kg6 {[%clk 0:02:09.2]} 34. f4 {[%clk
0:01:04.6]} 34... h6 {[%clk 0:02:07.1]} 35. Kf2 {[%clk 0:01:05.1]} 35... Rd6
{[%clk 0:01:55.6]} 36. Kf3 {[%clk 0:01:04.3]} 36... f6 {[%clk 0:01:53]} 37. Re1
{[%clk 0:01:04.5]} 37... h5 {[%clk 0:01:53.9]} 38. Rb1 {[%clk 0:01:01.5]} 38...
Bg4+ {[%clk 0:01:53.9]} 39. Kf2 {[%clk 0:01:02.3]} 39... Rd7 {[%clk 0:01:54.2]}
40. Rb6 {[%clk 0:01:02.3]} 40... Rf7 {[%clk 0:01:55.8]} 41. Rd6 {[%clk
0:01:02.4]} 41... Kf5 {[%clk 0:01:53.7]} 42. g3 {[%clk 0:00:55.1]} 42... Ke4
{[%clk 0:01:34.9]} 43. Bxf6 {[%clk 0:00:55.8]} 43... Rc7 {[%clk 0:01:26.9]} 44.
Rb6 {[%clk 0:00:51.7]} 44... Rf7 {[%clk 0:01:09.5]} 45. Be5 {[%clk 0:00:48.4]}
45... Re7 {[%clk 0:01:09.7]} 46. Rb4+ {[%clk 0:00:47.9]} 46... Kf5 {[%clk
0:01:10.2]} 47. Ke3 {[%clk 0:00:45.6]} 47... Bh3 {[%clk 0:01:09.7]} 48. Rb2
{[%clk 0:00:44.6]} 48... Kg4 {[%clk 0:01:03.1]} 49. Kf2 {[%clk 0:00:42.7]} 49...
Kf5 {[%clk 0:00:57.4]} 50. Rd2 {[%clk 0:00:40.3]} 50... Ke6 {[%clk 0:00:55]} 51.
Ke3 {[%clk 0:00:35.3]} 51... Re8 {[%clk 0:00:53.4]} 52. Rb2 {[%clk 0:00:34.8]}
52... Rg8 {[%clk 0:00:47.9]} 53. Rb6+ {[%clk 0:00:33.2]} 53... Kf5 {[%clk
0:00:46.1]} 54. Kf3 {[%clk 0:00:32.4]} 54... Bg4+ {[%clk 0:00:43.8]} 55. Kf2
{[%clk 0:00:32.4]} 55... Ke4 {[%clk 0:00:23]} 56. Rxb7 {[%clk 0:00:33.1]} 56...
Bh3 {[%clk 0:00:20.9]} 57. Rb4+ {[%clk 0:00:29.8]} 57... Kf5 {[%clk 0:00:22.3]}
58. Rb6 {[%clk 0:00:21.3]} 58... Ke4 {[%clk 0:00:23.2]} 59. Rb4+ {[%clk
0:00:17.2]} 59... Kf5 {[%clk 0:00:23.5]} 60. Rd4 {[%clk 0:00:18]} 60... h4
{[%clk 0:00:22.4]} 61. gxh4 {[%clk 0:00:18.9]} 61... Rg2+ {[%clk 0:00:24.3]} 62.
Kf3 {[%clk 0:00:19.6]} 62... Rc2 {[%clk 0:00:25.1]} 63. Rd3 {[%clk 0:00:14.3]}
63... Bg2+ {[%clk 0:00:19.9]} 64. Kg3 {[%clk 0:00:15.4]} 64... Be4 {[%clk
0:00:21.3]} 65. Re3 {[%clk 0:00:15.1]} 65... Rg2+ {[%clk 0:00:21.7]} 66. Kh3
{[%clk 0:00:16.1]} 66... Rg1 {[%clk 0:00:23.3]} 67. Bd4 {[%clk 0:00:13]} 67...
Rg8 {[%clk 0:00:17.3]} 68. Rg3 {[%clk 0:00:12.4]} 68... Rb8 {[%clk 0:00:16]} 69.
Be5 {[%clk 0:00:13.2]} 69... Rb1 {[%clk 0:00:15.5]} 70. Rg5+ {[%clk 0:00:13.8]}
70... Ke6 {[%clk 0:00:17.1]} 71. h5 {[%clk 0:00:14.6]} 71... Rh1+ {[%clk
0:00:17.4]} 72. Kg3 {[%clk 0:00:15.5]} 72... Bf5 {[%clk 0:00:17.3]} 73. Kg2
{[%clk 0:00:15.1]} 73... Be4+ {[%clk 0:00:18.2]} 74. Kf2 {[%clk 0:00:16.3]}
74... Rh3 {[%clk 0:00:19.6]} 75. Ke2 {[%clk 0:00:15.1]} 75... Bf5 {[%clk
0:00:20.9]} 76. Kd2 {[%clk 0:00:15.7]} 76... Be4 {[%clk 0:00:21]} 77. Kc1 {[%clk
0:00:16.9]} 77... Rh2 {[%clk 0:00:22.3]} 78. Bg7 {[%clk 0:00:14.9]} 78... Kd7
{[%clk 0:00:21.8]} 79. h6 {[%clk 0:00:15.6]} 79... Kc6 {[%clk 0:00:23.4]} 80. f5
{[%clk 0:00:14]} 80... Kd7 {[%clk 0:00:03.3]} 81. f6 {[%clk 0:00:14.4]} 81...
Ke6 {[%clk 0:00:04.9]} 82. Re5+ {[%clk 0:00:12.8]} 82... Kf7 {[%clk 0:00:02.9]}
83. Re7+ {[%clk 0:00:13.6]} 83... Kg6 {[%clk 0:00:04.4]} 84. f7 {[%clk
0:00:14.1]} 1-0

[Event "*** Titled Tuesday Blitz"]
[Site "Chess.com"]
[Date "2018.11.06"]
[Round "2"]
[White "biostatistician"]
[Black "JosefineHeinemann"]
[Result "1-0"]
[WhiteElo "2648"]
[BlackElo "2351"]
[TimeControl "180+2"]
[EndTime "13:15:43 PST"]
[Termination "biostatistician won by resignation"]

1. d4 {[%clk 0:03:01.8]} 1... Nf6 {[%clk 0:02:54.4]} 2. Nf3 {[%clk 0:03:03.7]}
2... g6 {[%clk 0:02:54.9]} 3. c4 {[%clk 0:03:05]} 3... Bg7 {[%clk 0:02:55.6]} 4.
Nc3 {[%clk 0:03:06.9]} 4... d5 {[%clk 0:02:56.8]} 5. cxd5 {[%clk 0:03:08.8]}
5... Nxd5 {[%clk 0:02:58.2]} 6. e4 {[%clk 0:03:10.7]} 6... Nxc3 {[%clk
0:02:59.8]} 7. bxc3 {[%clk 0:03:12.6]} 7... c5 {[%clk 0:03:01.3]} 8. Be3 {[%clk
0:03:13.7]} 8... Nc6 {[%clk 0:03:02.7]} 9. Rc1 {[%clk 0:03:14]} 9... cxd4 {[%clk
0:02:54.7]} 10. cxd4 {[%clk 0:03:15.9]} 10... Qa5+ {[%clk 0:02:55.9]} 11. Qd2
{[%clk 0:03:15.9]} 11... Qxd2+ {[%clk 0:02:56.7]} 12. Kxd2 {[%clk 0:03:17.5]}
12... O-O {[%clk 0:02:58.4]} 13. d5 {[%clk 0:03:19.2]} 13... Rd8 {[%clk
0:02:59.6]} 14. Ke1 {[%clk 0:03:20.3]} 14... Na5 {[%clk 0:02:59.2]} 15. Bg5
{[%clk 0:03:19.3]} 15... Kf8 {[%clk 0:02:58.8]} 16. Bd3 {[%clk 0:03:14.1]} 16...
h6 {[%clk 0:02:53.5]} 17. Bd2 {[%clk 0:03:14.9]} 17... f5 {[%clk 0:02:51.9]} 18.
Bxa5 {[%clk 0:03:14.1]} 18... b6 {[%clk 0:02:53.5]} 19. Bb4 {[%clk 0:03:11.7]}
19... fxe4 {[%clk 0:02:54.3]} 20. Bxe4 {[%clk 0:03:13.6]} 20... Bf5 {[%clk
0:02:54]} 21. Bxf5 {[%clk 0:03:12.1]} 21... gxf5 {[%clk 0:02:55.9]} 22. Rc7
{[%clk 0:03:12.3]} 22... Bf6 {[%clk 0:02:54.2]} 23. d6 {[%clk 0:03:12.5]} 23...
exd6 {[%clk 0:02:55]} 24. Kd2 {[%clk 0:03:09.1]} 24... a5 {[%clk 0:02:53.7]} 25.
Bc3 {[%clk 0:03:06.8]} 25... Bxc3+ {[%clk 0:02:54.4]} 26. Rxc3 {[%clk 0:03:08]}
26... b5 {[%clk 0:02:56]} 27. Nd4 {[%clk 0:03:06]} 27... b4 {[%clk 0:02:54.2]}
28. Rc7 {[%clk 0:03:04.3]} 28... Re8 {[%clk 0:02:52.2]} 29. Nxf5 {[%clk
0:03:02.3]} 29... Re6 {[%clk 0:02:53.7]} 30. Re1 {[%clk 0:02:57.9]} 30... Rae8
{[%clk 0:02:53.2]} 31. Rxe6 {[%clk 0:02:57.1]} 31... Rxe6 {[%clk 0:02:55.1]} 32.
Ra7 {[%clk 0:02:56.5]} 32... Rf6 {[%clk 0:02:54.3]} 33. g4 {[%clk 0:02:57.8]}
33... h5 {[%clk 0:02:54.7]} 34. h3 {[%clk 0:02:59.4]} 34... hxg4 {[%clk
0:02:55.1]} 35. hxg4 {[%clk 0:03:01.3]} 1-0

[Event "*** Titled Tuesday Blitz"]
[Site "Chess.com"]
[Date "2018.11.06"]
[Round "2"]
[White "David_Paravyan"]
[Black "PrascaR"]
[Result "0-1"]
[WhiteElo "2769"]
[BlackElo "2546"]
[TimeControl "180+2"]
[EndTime "13:15:50 PST"]
[Termination "PrascaR won by resignation"]

1. d4 {[%clk 0:03:01.9]} 1... d5 {[%clk 0:03:00.4]} 2. c4 {[%clk 0:03:02.2]}
2... c6 {[%clk 0:03:01.3]} 3. Nf3 {[%clk 0:03:03.3]} 3... Nf6 {[%clk 0:03:02.1]}
4. h3 {[%clk 0:03:04.9]} 4... a6 {[%clk 0:02:59.6]} 5. e3 {[%clk 0:03:02.7]}
5... g6 {[%clk 0:02:57.9]} 6. Be2 {[%clk 0:03:00.2]} 6... Bg7 {[%clk 0:02:58.7]}
7. O-O {[%clk 0:03:01.7]} 7... O-O {[%clk 0:02:59.7]} 8. Nbd2 {[%clk 0:03:02.5]}
8... b5 {[%clk 0:02:48.7]} 9. cxd5 {[%clk 0:03:03.3]} 9... cxd5 {[%clk
0:02:49.3]} 10. Nb3 {[%clk 0:03:04.7]} 10... Nbd7 {[%clk 0:02:49.3]} 11. Bd2
{[%clk 0:03:04.3]} 11... Bb7 {[%clk 0:02:44.9]} 12. Na5 {[%clk 0:03:03.9]} 12...
Rb8 {[%clk 0:02:42.5]} 13. Rc1 {[%clk 0:03:03.7]} 13... Re8 {[%clk 0:02:38]} 14.
Bb4 {[%clk 0:03:01.6]} 14... Ne4 {[%clk 0:02:34.8]} 15. Qe1 {[%clk 0:02:59.7]}
15... e5 {[%clk 0:02:24.1]} 16. Nxb7 {[%clk 0:02:57]} 16... Rxb7 {[%clk
0:02:24.7]} 17. dxe5 {[%clk 0:02:58]} 17... Nxe5 {[%clk 0:02:24.8]} 18. Nd4
{[%clk 0:02:59.3]} 18... Rc7 {[%clk 0:01:56.8]} 19. Qd1 {[%clk 0:02:35.8]} 0-1

[Event "*** Titled Tuesday Blitz"]
[Site "Chess.com"]
[Date "2018.11.06"]
[Round "2"]
[White "nOcHeaTiNgKiD"]
[Black "TheRigos"]
[Result "0-1"]
[WhiteElo "2453"]
[BlackElo "2407"]
[TimeControl "180+2"]
[EndTime "13:17:04 PST"]
[Termination "TheRigos won by resignation"]

1. Nf3 {[%clk 0:03:01.9]} 1... Nf6 {[%clk 0:02:58.9]} 2. g3 {[%clk 0:03:02]}
2... g6 {[%clk 0:03:00]} 3. b3 {[%clk 0:03:03]} 3... Bg7 {[%clk 0:03:01]} 4. Bb2
{[%clk 0:03:04.3]} 4... O-O {[%clk 0:03:01.9]} 5. Bg2 {[%clk 0:03:05.5]} 5... d6
{[%clk 0:03:03]} 6. d4 {[%clk 0:03:06.2]} 6... a5 {[%clk 0:03:00.5]} 7. O-O
{[%clk 0:03:01.4]} 7... a4 {[%clk 0:02:52.1]} 8. b4 {[%clk 0:03:02]} 8... Nc6
{[%clk 0:02:49.6]} 9. a3 {[%clk 0:03:00.8]} 9... e5 {[%clk 0:02:48.6]} 10. dxe5
{[%clk 0:03:01.6]} 10... Ng4 {[%clk 0:02:49.5]} 11. c4 {[%clk 0:02:55]} 11...
Ngxe5 {[%clk 0:02:38.9]} 12. Qc2 {[%clk 0:02:51.1]} 12... Bf5 {[%clk 0:02:29.8]}
13. e4 {[%clk 0:02:49.9]} 13... Bxe4 {[%clk 0:02:31.1]} 14. Qxe4 {[%clk
0:02:46.7]} 14... Nxf3+ {[%clk 0:02:32.1]} 15. Bxf3 {[%clk 0:02:46.2]} 15...
Bxb2 {[%clk 0:02:33.6]} 16. Ra2 {[%clk 0:02:47.3]} 16... Re8 {[%clk 0:02:31.7]}
17. Qd5 {[%clk 0:02:42.9]} 17... Qf6 {[%clk 0:02:19.8]} 18. Nd2 {[%clk
0:02:27.4]} 18... Nd4 {[%clk 0:01:55.9]} 19. Bg2 {[%clk 0:02:08.5]} 19... c6
{[%clk 0:01:52.9]} 20. Ne4 {[%clk 0:02:08.4]} 20... Ne2+ {[%clk 0:01:20.5]} 21.
Kh1 {[%clk 0:02:08.1]} 21... cxd5 {[%clk 0:01:22.4]} 22. Nxf6+ {[%clk
0:02:08.9]} 22... Bxf6 {[%clk 0:01:24]} 23. Bxd5 {[%clk 0:02:07.3]} 23... Nc3
{[%clk 0:01:24.9]} 0-1